fUSD/lending_fUSD_20240914
["ID","MTS","AMOUNT","RATE_DAILY","PERIOD"]
[338121455,1726284669365,-500.0,0.00014999,2]
[338121456,1726284669375,-500.0,0.00014999,2]
[338121457,1726284669385,-574.06704445,0.00014999,2]
[338121458,1726284669394,-500.0,0.00014999,2]
[338121459,1726284669403,-500.0,0.00014999,2]
[338121460,1726284669413,-500.0,0.00014999,2]
[338121461,1726284669423,-500.0,0.00014999,2]
[338121462,1726284669433,-500.0,0.00014999,2]
[338121463,1726284669442,-500.0,0.00014999,2]
[338121464,1726284669451,-500.0,0.00014999,2]
[338121465,1726284669461,-500.0,0.00014999,2]
[338121466,1726284669470,-500.0,0.00014999,2]
[338121467,1726284669479,-500.0,0.00014999,2]
[338121468,1726284669489,-500.0,0.00014999,2]
[338121469,1726284669498,-500.0,0.00014999,2]
[338121470,1726284669508,-500.0,0.00014999,2]
[338121471,1726284669518,-409.42253086,0.00014999,2]
[338121472,1726284669529,-500.0,0.00014999,2]
[338121473,1726284669539,-500.0,0.00014999,2]
[338121474,1726284669549,-520.90297922,0.00014999,2]
[338121475,1726284669558,-537.98,0.00014999,2]
[338121476,1726284669567,-537.98,0.00014999,2]
[338121477,1726284669577,-537.98,0.00014999,2]
[338121478,1726284669586,-537.98,0.00014999,2]
[338121479,1726284669595,-537.98,0.00014999,2]
[338121480,1726284669605,-500.0,0.00014999,2]
[338121481,1726284669615,-537.98,0.00014999,2]
[338121482,1726284669624,-500.0,0.00014999,2]
[338121483,1726284669634,-537.98,0.00014999,2]
[338121484,1726284669643,-319.51786173,0.00014999,2]
[338121485,1726284669653,-537.98,0.00014999,2]
[338121486,1726284669663,-946.56,0.00014999,2]
[338121487,1726284669672,-537.98,0.00014999,2]
[338121488,1726284669681,-946.56,0.00014999,2]
[338121489,1726284669691,-538.15741719,0.00014999,2]
[338121490,1726284669700,-946.56,0.00014999,2]
[338121491,1726284669709,-946.56,0.00014999,2]
[338121492,1726284669718,-946.56,0.00014999,2]
[338121493,1726284669728,-946.56,0.00014999,2]
[338121494,1726284669737,-946.56,0.00014999,2]
[338121495,1726284669747,-946.56,0.00014999,2]
[338121496,1726284669757,-5556644.27066272,0.00015,2]
[338121497,1726284670063,-422816.604425,0.00015,2]
[338121498,1726284684213,220.26920592,0.00027,120]
[338121499,1726284741825,150.0,0.00031413,30]
[338121500,1726284768593,500.0,0.00031413,30]
[338121501,1726284803767,441.390226,0.000273,120]
[338121503,1726284813619,500.0,0.000273,120]
[338121504,1726284819717,200.0,0.000273,120]
[338121506,1726284844911,3000.0,0.00031413,120]
[338121508,1726285011902,156.39,0.00010959,2]
[338121509,1726285040160,150.0,0.00031413,30]
[338121511,1726285116149,150.71,0.00011808,2]
[338121512,1726285155006,558.90202595,0.00028,120]
[338121514,1726285353081,168.466,0.0001264,2]
[338121515,1726285354318,904.74155776,0.00012,2]
[338121516,1726285410674,500.0,0.000273,120]
[338121517,1726285415450,200.0,0.000273,120]
[338121519,1726285627778,3022.96477894,0.00011604,2]
[338121520,1726285709537,150.84,0.00011691,2]
[338121521,1726285810704,1050.0,0.00011,2]
[338121531,1726285831764,-150.0,0.00013269,2]
[338121533,1726285831774,-246.64994585,0.00013269,2]
[338121534,1726285831884,-53.35005415,0.00013269,2]
[338121535,1726285831893,-448.0,0.0001327,2]
[338121536,1726285831902,-1548.0,0.0001327,2]
[338121537,1726285831912,-624.0,0.0001327,2]
[338121538,1726285831920,-1261.0,0.0001327,2]
[338121539,1726285831930,-151.282,0.0001327,2]
[338121540,1726285831939,-266.509,0.0001327,2]
[338121541,1726285831948,-9313.0,0.0001327,2]
[338121542,1726285831957,-1145.0,0.0001327,2]
[338121543,1726285831968,-150.0,0.0001327,2]
[338121544,1726285831978,-221.64,0.00013518,2]
[338121545,1726285831987,-600.0,0.0001364,2]
[338121546,1726285831996,-250.0,0.00013646,2]
[338121547,1726285832005,-150.0,0.00013699,2]
[338121548,1726285832014,-200.0,0.00013699,2]
[338121549,1726285832023,-151.28,0.00013883,2]
[338121550,1726285832032,-200.0,0.000139,5]
[338121551,1726285832041,-400.0,0.00013959,2]
[338121552,1726285832050,-1505.64,0.00014,2]
[338121553,1726285832060,-150.0,0.00014,2]
[338121554,1726285832070,-765.9,0.00014,2]
[338121555,1726285832079,-852.33,0.00014,2]
[338121556,1726285832088,-150.0,0.00014,2]
[338121557,1726285832097,-427.85,0.00014,2]
[338121558,1726285832107,-914.25,0.00014,2]
[338121559,1726285832117,-855.7,0.00014,2]
[338121560,1726285832126,-500.0,0.00014,5]
[338121562,1726285832135,-150.0,0.00014062,2]
[338121563,1726285832144,-150.0,0.00014078,2]
[338121565,1726285832153,-301.96,0.00014078,2]
[338121567,1726285832162,-154.12,0.00014078,2]
[338121569,1726285832171,-350.92,0.00014078,2]
[338121570,1726285832181,-427.85,0.00014078,2]
[338121572,1726285832190,-150.0,0.00014078,2]
[338121575,1726285832199,-357.37,0.00014078,2]
[338121577,1726285832208,-150.0,0.00014078,2]
[338121580,1726285832217,-427.85,0.00014078,2]
[338121582,1726285832226,-150.0,0.00014078,2]
[338121583,1726285832235,-301.16,0.00014078,2]
[338121584,1726285832244,-151.41,0.00014078,2]
[338121585,1726285832253,-427.85,0.00014078,2]
[338121586,1726285832262,-427.85,0.00014078,2]
[338121587,1726285832271,-800.0,0.000141,5]
[338121588,1726285832280,-267.0,0.0001417,2]
[338121589,1726285832289,-3763.6,0.00014187,2]
[338121590,1726285832299,-119.60618568,0.000142,5]
[338121591,1726285832310,-980.39381432,0.000142,5]
[338121592,1726285832319,-519.60618568,0.000143,5]
[338121597,1726285838178,-880.39381432,0.000143,5]
[338121598,1726285838188,-150.84,0.00014379,2]
[338121599,1726285838198,-152.0,0.00014383,2]
[338121600,1726285838208,-222.69,0.000144,2]
[338121601,1726285838218,-200.0,0.000144,5]
[338121602,1726285838227,-150.0,0.00014425,2]
[338121603,1726285838237,-200.0,0.000145,5]
[338121604,1726285838247,-156.459,0.000145,2]
[338121605,1726285838256,-1000.0,0.00014521,2]
[338121606,1726285838266,-420.0,0.00014548,2]
[338121607,1726285838280,-200.0,0.000146,5]
[338121608,1726285838289,-200.0,0.000147,5]
[338121609,1726285838300,-150.0,0.00014788,2]
[338121610,1726285838310,-3736.57,0.00014794,2]
[338121611,1726285838320,-401.222742,0.00014794,2]
[338121612,1726285838330,-401.222742,0.00014794,2]
[338121613,1726285838340,-401.222742,0.00014794,2]
[338121614,1726285838350,-401.222742,0.00014794,2]
[338121615,1726285838359,-151.0,0.00014794,2]
[338121616,1726285838369,-151.0,0.00014794,2]
[338121618,1726285838379,-500.0,0.00014794,2]
[338121620,1726285838389,-500.0,0.00014794,2]
[338121621,1726285838398,-500.0,0.00014794,2]
[338121623,1726285838409,-500.33862388,0.00014794,2]
[338121625,1726285838419,-452.462,0.00014794,2]
[338121627,1726285838428,-170.082,0.00014794,2]
[338121629,1726285838437,-500.0,0.00014794,2]
[338121631,1726285838447,-500.0,0.00014794,2]
[338121633,1726285838456,-500.0,0.00014794,2]
[338121635,1726285838466,-500.0,0.00014794,2]
[338121637,1726285838476,-500.96848576,0.00014794,2]
[338121639,1726285838486,-500.0,0.00014794,2]
[338121641,1726285838505,-500.0,0.00014794,2]
[338121643,1726285838515,-500.0,0.00014794,2]
[338121645,1726285838525,-500.0,0.00014794,2]
[338121647,1726285838535,-503.15214287,0.00014794,2]
[338121649,1726285838544,-500.0,0.00014794,2]
[338121651,1726285838554,-318.12106759,0.00014794,2]
[338121653,1726285838563,-500.0,0.00014794,2]
[338121655,1726285838573,-500.0,0.00014794,2]
[338121657,1726285838584,-511.76326713,0.00014794,2]
[338121659,1726285838594,-500.0,0.00014794,2]
[338121661,1726285838604,-455.54853226,0.00014794,2]
[338121663,1726285838613,-500.46688059,0.00014794,2]
[338121665,1726285838622,-320.94136663,0.00014794,2]
[338121667,1726285838632,-500.0,0.00014794,2]
[338121669,1726285838641,-500.0,0.00014794,2]
[338121671,1726285838651,-500.0,0.00014794,2]
[338121673,1726285838660,-500.0,0.00014794,2]
[338121675,1726285838669,-500.0,0.00014794,2]
[338121677,1726285838678,-500.0,0.00014794,2]
[338121679,1726285838688,-500.0,0.00014794,2]
[338121680,1726285838698,-500.0,0.00014794,2]
[338121682,1726285838707,-500.0,0.00014794,2]
[338121684,1726285838716,-500.0,0.00014794,2]
[338121686,1726285838726,-500.0,0.00014794,2]
[338121688,1726285838735,-500.0,0.00014794,2]
[338121690,1726285838745,-500.0,0.00014794,2]
[338121692,1726285838755,-500.0,0.00014794,2]
[338121694,1726285838764,-500.0,0.00014794,2]
[338121696,1726285838774,-500.0,0.00014794,2]
[338121698,1726285838784,-500.0,0.00014794,2]
[338121700,1726285838794,-500.0,0.00014794,2]
[338121702,1726285838803,-500.0,0.00014794,2]
[338121704,1726285838813,-500.0,0.00014794,2]
[338121706,1726285838822,-500.0,0.00014794,2]
[338121708,1726285838832,-500.0,0.00014794,2]
[338121710,1726285838842,-500.0,0.00014794,2]
[338121712,1726285838852,-500.0,0.00014794,2]
[338121714,1726285838861,-500.0,0.00014794,2]
[338121715,1726285838871,-500.0,0.00014794,2]
[338121717,1726285838882,-500.0,0.00014794,2]
[338121719,1726285838891,-500.0,0.00014794,2]
[338121721,1726285838902,-500.0,0.00014794,2]
[338121723,1726285838912,-500.0,0.00014794,2]
[338121725,1726285838922,-500.0,0.00014794,2]
[338121727,1726285838931,-500.0,0.00014794,2]
[338121729,1726285838940,-500.0,0.00014794,2]
[338121731,1726285838950,-500.0,0.00014794,2]
[338121733,1726285838960,-500.0,0.00014794,2]
[338121735,1726285838970,-500.0,0.00014794,2]
[338121737,1726285838980,-500.0,0.00014794,2]
[338121739,1726285838990,-500.0,0.00014794,2]
[338121741,1726285839000,-500.0,0.00014794,2]
[338121743,1726285839009,-500.0,0.00014794,2]
[338121745,1726285839019,-500.0,0.00014794,2]
[338121747,1726285839029,-500.0,0.00014794,2]
[338121749,1726285839038,-500.0,0.00014794,2]
[338121751,1726285839048,-500.0,0.00014794,2]
[338121753,1726285839059,-500.0,0.00014794,2]
[338121755,1726285839068,-500.0,0.00014794,2]
[338121757,1726285839078,-500.0,0.00014794,2]
[338121758,1726285839088,-500.0,0.00014794,2]
[338121760,1726285839098,-500.0,0.00014794,2]
[338121762,1726285839107,-500.0,0.00014794,2]
[338121764,1726285839118,-500.0,0.00014794,2]
[338121766,1726285839127,-500.0,0.00014794,2]
[338121768,1726285839137,-500.0,0.00014794,2]
[338121770,1726285839147,-500.0,0.00014794,2]
[338121772,1726285839158,-500.0,0.00014794,2]
[338121774,1726285839167,-218.68029528,0.00014794,2]
[338121776,1726285839177,-401.222742,0.000148,2]
[338121778,1726285839186,-401.222742,0.000148,2]
[338121779,1726285839196,-918.0,0.000148,5]
[338121781,1726285839206,-1573.9689,0.0001485,2]
[338121783,1726285839215,-1077.80153123,0.0001487,2]
[338121785,1726285839224,-1077.80153118,0.00014873,2]
[338121787,1726285839234,-1077.80153118,0.00014877,2]
[338121789,1726285839243,-200.68788349,0.00014879,2]
[338121791,1726285839253,-1077.80153118,0.0001488,2]
[338121793,1726285839262,-366.07600582,0.0001488,2]
[338121795,1726285839272,-1077.80153118,0.00014883,2]
[338121796,1726285839282,-1077.80153118,0.00014887,2]
[338121797,1726285839292,-1077.80153118,0.0001489,2]
[338121798,1726285839302,-1077.80153118,0.00014893,2]
[338121799,1726285839312,-1077.80153118,0.00014897,2]
[338121800,1726285839321,-356.1093191,0.000149,2]
[338121802,1726285839331,-159.81981176,0.000149,2]
[338121804,1726285839340,-178.57,0.000149,31]
[338121806,1726285839350,-178.57,0.000149,31]
[338121808,1726285839360,-178.57,0.000149,31]
[338121809,1726285839369,-1077.80153118,0.000149,2]
[338121811,1726285839378,-836.5934373,0.000149,2]
[338121813,1726285839388,-37271.484864,0.0001496,3]
[338121815,1726285839398,-18635.742432,0.00014969,3]
[338121817,1726285839409,-4658.935608,0.00014969,3]
[338121819,1726285839419,-500.0,0.0001497,2]
[338121821,1726285839428,-500.0,0.0001497,2]
[338121823,1726285839438,-500.0,0.0001497,2]
[338121825,1726285839448,-501.66790364,0.0001497,2]
[338121827,1726285839458,-500.0,0.0001497,2]
[338121829,1726285839467,-501.47063091,0.0001497,2]
[338121850,1726285839671,-500.0,0.0001497,2]
[338121852,1726285839681,-500.0,0.0001497,2]
[338121854,1726285839690,-500.0,0.0001497,2]
[338121856,1726285839700,-500.0,0.0001497,2]
[338121858,1726285839709,-500.0,0.0001497,2]
[338121860,1726285839718,-500.0,0.0001497,2]
[338121862,1726285839728,-473.24782034,0.0001497,2]
[338121864,1726285839738,-516.77852732,0.0001497,2]
[338121866,1726285839748,-500.0,0.0001497,2]
[338121868,1726285839757,-500.0,0.0001497,2]
[338121870,1726285839767,-160.78,0.0001497,2]
[338121872,1726285839775,-492.4786033,0.00014973,2]
[338121874,1726285839785,-4658.935608,0.00014978,3]
[338121876,1726285839795,-4658.935608,0.00014978,3]
[338121878,1726285839804,-500.0,0.00014979,2]
[338121880,1726285839814,-199.77257012,0.00014979,2]
[338121882,1726285839823,-254.41584871,0.00014979,2]
[338121884,1726285839833,-41930.420472,0.00014979,3]
[338121886,1726285839842,-496.73645414,0.00014979,2]
[338121888,1726285839851,-500.0,0.00014979,2]
[338121889,1726285839860,-500.0,0.00014979,2]
[338121891,1726285839870,-500.0,0.00014979,2]
[338121893,1726285839879,-500.0,0.00014979,2]
[338121895,1726285839889,-500.0,0.00014979,2]
[338121897,1726285839898,-500.0,0.00014979,2]
[338121899,1726285839907,-575.46,0.00014979,2]
[338121900,1726285839916,-575.46,0.00014979,2]
[338121902,1726285839925,-575.46,0.00014979,2]
[338121904,1726285839934,-500.0,0.00014979,2]
[338121906,1726285839943,-500.0,0.00014979,2]
[338121908,1726285839954,-500.0,0.00014979,2]
[338121910,1726285839963,-500.0,0.00014979,2]
[338121911,1726285839974,-500.0,0.00014979,2]
[338121913,1726285839984,-500.0,0.00014979,2]
[338121915,1726285839993,-528.15,0.00014979,2]
[338121917,1726285840002,-528.15,0.00014979,2]
[338121919,1726285840012,-528.15,0.00014979,2]
[338121921,1726285840021,-500.0,0.00014979,2]
[338121923,1726285840030,-500.0,0.00014979,2]
[338121925,1726285840039,-500.0,0.00014979,2]
[338121927,1726285840048,-694.58,0.00014979,2]
[338121928,1726285840057,-694.58,0.00014979,2]
[338121930,1726285840066,-694.58,0.00014979,2]
[338121932,1726285840076,-500.0,0.00014979,2]
[338121934,1726285840085,-500.0,0.00014979,2]
[338121936,1726285840094,-224.73258912,0.00014979,2]
[338121938,1726285840104,-500.0,0.00014979,2]
[338121940,1726285840113,-500.0,0.00014979,2]
[338121942,1726285840123,-500.0,0.00014979,2]
[338121944,1726285840132,-500.0,0.00014979,2]
[338121946,1726285840141,-500.0,0.00014979,2]
[338121948,1726285840151,-500.0,0.00014979,2]
[338121950,1726285840160,-500.0,0.00014979,2]
[338121952,1726285840170,-500.0,0.00014979,2]
[338121954,1726285840179,-500.0,0.00014979,2]
[338121956,1726285840188,-4658.935608,0.00014979,3]
[338121958,1726285840197,-79201.905336,0.0001498,3]
[338121960,1726285840207,-57535.2121375,0.0001498,3]
[338121962,1726285840216,-74542.969728,0.0001498,3]
[338121964,1726285840225,-148632.631355,0.0001498,3]
[338121966,1726285840235,-500.0,0.00014986,2]
[338121968,1726285840244,-500.0,0.00014987,2]
[338121970,1726285840253,-500.0,0.00014988,2]
[338121972,1726285840263,-500.0,0.00014988,2]
[338121974,1726285840272,-500.0,0.00014988,2]
[338121976,1726285840282,-500.0,0.00014988,2]
[338121978,1726285840292,-500.0,0.00014988,2]
[338121980,1726285840302,-500.0,0.00014988,2]
[338121982,1726285840311,-500.0,0.00014988,2]
[338121984,1726285840320,-500.0,0.00014988,2]
[338121986,1726285840329,-500.0,0.00014988,2]
[338121988,1726285840339,-500.0,0.00014988,2]
[338121990,1726285840348,-500.0,0.00014988,2]
[338121992,1726285840358,-567.63069207,0.00014988,2]
[338121994,1726285840367,-47946.0101146,0.00014989,3]
[338121996,1726285840377,-500.0,0.00014989,2]
[338121998,1726285840386,-500.0,0.00014989,2]
[338122000,1726285840396,-500.0,0.00014989,2]
[338122002,1726285840409,-500.0,0.00014989,2]
[338122004,1726285840418,-500.0,0.00014989,2]
[338122006,1726285840428,-500.0,0.00014989,2]
[338122008,1726285840437,-500.0,0.00014989,2]
[338122010,1726285840447,-500.0,0.00014989,2]
[338122012,1726285840456,-500.0,0.00014989,2]
[338122014,1726285840465,-500.0,0.00014989,2]
[338122016,1726285840475,-500.0,0.00014989,2]
[338122018,1726285840484,-500.0,0.00014989,2]
[338122020,1726285840493,-500.0,0.00014989,2]
[338122022,1726285840502,-500.0,0.00014989,2]
[338122024,1726285840511,-500.0,0.00014989,2]
[338122026,1726285840520,-500.0,0.00014989,2]
[338122027,1726285840529,-500.0,0.00014989,2]
[338122029,1726285840538,-500.0,0.00014989,2]
[338122032,1726285840548,-500.0,0.00014989,2]
[338122033,1726285840557,-23973.0050573,0.0001499,3]
[338122035,1726285840567,-3767.25,0.0001499,2]
[338122037,1726285840577,-401.222742,0.00014998,2]
[338122040,1726285840589,-401.222742,0.00014998,2]
[338122041,1726285840599,-500.0,0.00014998,2]
[338122043,1726285840608,-500.0,0.00014998,2]
[338122045,1726285840617,-500.0,0.00014998,2]
[338122047,1726285840627,-500.0,0.00014998,2]
[338122049,1726285840636,-500.0,0.00014998,2]
[338122051,1726285840645,-500.0,0.00014998,2]
[338122053,1726285840655,-500.0,0.00014999,2]
[338122055,1726285840664,-500.0,0.00014999,2]
[338122057,1726285840674,-500.0,0.00014999,2]
[338122059,1726285840684,-500.0,0.00014999,2]
[338122061,1726285840693,-500.0,0.00014999,2]
[338122063,1726285840702,-500.0,0.00014999,2]
[338122066,1726285840712,-500.0,0.00014999,2]
[338122067,1726285840721,-500.0,0.00014999,2]
[338122069,1726285840730,-500.0,0.00014999,2]
[338122071,1726285840740,-500.0,0.00014999,2]
[338122073,1726285840749,-500.0,0.00014999,2]
[338122075,1726285840759,-500.0,0.00014999,2]
[338122077,1726285840768,-500.0,0.00014999,2]
[338122080,1726285840779,-500.0,0.00014999,2]
[338122082,1726285840790,-500.0,0.00014999,2]
[338122084,1726285840799,-381.99715603,0.00014999,2]
[338122086,1726285840808,-575.46,0.00014999,2]
[338122088,1726285840817,-575.46,0.00014999,2]
[338122090,1726285840827,-575.46,0.00014999,2]
[338122092,1726285840836,-575.46,0.00014999,2]
[338122093,1726285840845,-575.46,0.00014999,2]
[338122096,1726285840855,-575.46,0.00014999,2]
[338122097,1726285840865,-575.46,0.00014999,2]
[338122100,1726285840876,-575.46,0.00014999,2]
[338122101,1726285840885,-575.46,0.00014999,2]
[338122103,1726285840894,-575.46,0.00014999,2]
[338122106,1726285840905,-575.46,0.00014999,2]
[338122107,1726285840914,-575.46,0.00014999,2]
[338122108,1726285840924,-575.46,0.00014999,2]
[338122109,1726285840933,-575.46,0.00014999,2]
[338122110,1726285840942,-575.46,0.00014999,2]
[338122111,1726285840951,-575.46,0.00014999,2]
[338122112,1726285840960,-575.46,0.00014999,2]
[338122113,1726285840970,-575.46,0.00014999,2]
[338122114,1726285840980,-575.46,0.00014999,2]
[338122115,1726285840989,-575.46,0.00014999,2]
[338122116,1726285840999,-575.46472778,0.00014999,2]
[338122117,1726285841009,-500.0,0.00014999,2]
[338122118,1726285841018,-500.0,0.00014999,2]
[338122119,1726285841028,-500.0,0.00014999,2]
[338122120,1726285841037,-500.0,0.00014999,2]
[338122121,1726285841046,-500.0,0.00014999,2]
[338122122,1726285841055,-500.0,0.00014999,2]
[338122123,1726285841064,-500.0,0.00014999,2]
[338122124,1726285841074,-500.0,0.00014999,2]
[338122125,1726285841084,-500.0,0.00014999,2]
[338122126,1726285841093,-500.0,0.00014999,2]
[338122127,1726285841103,-500.0,0.00014999,2]
[338122129,1726285841112,-500.0,0.00014999,2]
[338122131,1726285841121,-500.0,0.00014999,2]
[338122132,1726285841130,-500.0,0.00014999,2]
[338122134,1726285841140,-500.0,0.00014999,2]
[338122136,1726285841149,-500.0,0.00014999,2]
[338122138,1726285841159,-500.0,0.00014999,2]
[338122140,1726285841168,-500.0,0.00014999,2]
[338122142,1726285841178,-207.91900825,0.00014999,2]
[338122144,1726285841187,-500.0,0.00014999,2]
[338122145,1726285841196,-500.0,0.00014999,2]
[338122147,1726285841206,-500.0,0.00014999,2]
[338122149,1726285841215,-500.0,0.00014999,2]
[338122151,1726285841224,-500.0,0.00014999,2]
[338122153,1726285841234,-128.73871743,0.00014999,2]
[338122695,1726285846971,-3807.36,0.00014458,2]
[338122697,1726285846982,-501.97786434,0.00014973,2]
[338122699,1726285846992,-371.26128257,0.00014999,2]
[338122701,1726285847003,-500.0,0.00014999,2]
[338122703,1726285847014,-390.87866982,0.00014999,2]
[338122705,1726285847026,-528.15,0.00014999,2]
[338122707,1726285847037,-528.15,0.00014999,2]
[338122709,1726285847048,-528.15,0.00014999,2]
[338122711,1726285847059,-528.15,0.00014999,2]
[338122713,1726285847070,-528.15,0.00014999,2]
[338122715,1726285847081,-528.15,0.00014999,2]
[338122717,1726285847092,-528.15,0.00014999,2]
[338122719,1726285847103,-528.15,0.00014999,2]
[338122721,1726285847114,-528.15,0.00014999,2]
[338122723,1726285847125,-528.15,0.00014999,2]
[338122725,1726285847135,-528.15,0.00014999,2]
[338122727,1726285847145,-528.15,0.00014999,2]
[338122729,1726285847155,-528.15,0.00014999,2]
[338122731,1726285847165,-528.15,0.00014999,2]
[338122733,1726285847175,-528.15,0.00014999,2]
[338122735,1726285847185,-528.15,0.00014999,2]
[338122737,1726285847195,-528.15,0.00014999,2]
[338122738,1726285847205,-528.15,0.00014999,2]
[338122740,1726285847215,-528.15,0.00014999,2]
[338122742,1726285847226,-528.15,0.00014999,2]
[338122744,1726285847237,-528.16810538,0.00014999,2]
[338122746,1726285847247,-500.0,0.00014999,2]
[338122748,1726285847258,-500.0,0.00014999,2]
[338122751,1726285847270,-500.0,0.00014999,2]
[338122753,1726285847281,-500.0,0.00014999,2]
[338122755,1726285847292,-500.0,0.00014999,2]
[338122757,1726285847304,-500.0,0.00014999,2]
[338122759,1726285847314,-500.0,0.00014999,2]
[338122760,1726285847323,-500.0,0.00014999,2]
[338122762,1726285847333,-500.0,0.00014999,2]
[338122764,1726285847343,-433.90308212,0.00014999,2]
[338122766,1726285847354,-500.0,0.00014999,2]
[338122768,1726285847366,-500.0,0.00014999,2]
[338122771,1726285847378,-500.0,0.00014999,2]
[338122773,1726285847389,-500.0,0.00014999,2]
[338122775,1726285847401,-500.0,0.00014999,2]
[338122777,1726285847413,-500.0,0.00014999,2]
[338122779,1726285847423,-500.0,0.00014999,2]
[338122781,1726285847435,-500.0,0.00014999,2]
[338122783,1726285847445,-500.0,0.00014999,2]
[338122785,1726285847457,-303.76117364,0.00014999,2]
[338122787,1726285847467,-500.0,0.00014999,2]
[338122789,1726285847477,-500.0,0.00014999,2]
[338122791,1726285847489,-500.0,0.00014999,2]
[338122793,1726285847499,-500.0,0.00014999,2]
[338122795,1726285847510,-500.0,0.00014999,2]
[338122797,1726285847522,-500.0,0.00014999,2]
[338122798,1726285847533,-500.0,0.00014999,2]
[338122799,1726285847543,-500.0,0.00014999,2]
[338122800,1726285847554,-209.28685726,0.00014999,2]
[338122801,1726285847564,-500.0,0.00014999,2]
[338122802,1726285847574,-500.0,0.00014999,2]
[338122803,1726285847585,-500.0,0.00014999,2]
[338122804,1726285847598,-500.0,0.00014999,2]
[338122805,1726285847609,-500.0,0.00014999,2]
[338122806,1726285847621,-536.03909744,0.00014999,2]
[338122807,1726285847631,-500.0,0.00014999,2]
[338122809,1726285847644,-269.14909716,0.00014999,2]
[338122811,1726285847654,-694.58,0.00014999,2]
[338122813,1726285847666,-694.58,0.00014999,2]
[338122815,1726285847676,-694.58,0.00014999,2]
[338122817,1726285847687,-694.58,0.00014999,2]
[338122819,1726285847698,-694.58,0.00014999,2]
[338122821,1726285847708,-694.58,0.00014999,2]
[338122823,1726285847719,-694.58,0.00014999,2]
[338122825,1726285847730,-694.58,0.00014999,2]
[338122827,1726285847741,-694.58,0.00014999,2]
[338122829,1726285847752,-694.58,0.00014999,2]
[338122831,1726285847762,-500.0,0.00014999,2]
[338122833,1726285847773,-694.58,0.00014999,2]
[338122835,1726285847785,-500.0,0.00014999,2]
[338122837,1726285847797,-694.58,0.00014999,2]
[338122839,1726285847808,-500.0,0.00014999,2]
[338122842,1726285847820,-694.58,0.00014999,2]
[338122844,1726285847830,-500.0,0.00014999,2]
[338122846,1726285847840,-694.58,0.00014999,2]
[338122848,1726285847850,-500.0,0.00014999,2]
[338122850,1726285847860,-694.58,0.00014999,2]
[338122852,1726285847871,-500.0,0.00014999,2]
[338122854,1726285847881,-694.58,0.00014999,2]
[338122856,1726285847892,-500.0,0.00014999,2]
[338122858,1726285847902,-694.58,0.00014999,2]
[338122860,1726285847912,-500.0,0.00014999,2]
[338122862,1726285847923,-694.58,0.00014999,2]
[338122863,1726285847934,-172.50237357,0.00014999,2]
[338122865,1726285847945,-694.58,0.00014999,2]